bitfinex/quotes_ETHUSD_20220113
["timestamp","ask_amount","ask_price","bid_price","bid_amount"]
[1642053936775,2.70130966,3343.4,3343.3,0.00113685]
[1642053937375,2.58170966,3343.4,3343.3,0.00113685]
[1642053937978,2.58170966,3343.4,3343.3,0.30113685]
[1642053938178,4.11883623,3343.4,3343.3,0.30113685]
[1642053938780,1.55305161,3343.4,3343.3,0.30113685]
[1642053939380,4.11883623,3343.4,3343.3,0.30113685]
[1642053940027,2.58170966,3343.4,3343.3,0.30113685]
[1642053943133,2.58170966,3343.4,3343.3,0.00113685]
[1642053944393,4.11883623,3343.4,3343.3,0.00113685]
[1642053945497,2.58170966,3343.4,3343.3,0.00113685]
[1642053946396,4.11883623,3343.4,3343.3,0.00113685]
[1642053946797,4.11883623,3343.4,3343.3,0.30113685]
[1642053947627,4.11883623,3343.4,3343.3,0.00113685]
[1642053948231,2.58170966,3343.4,3343.3,0.00113685]
[1642053948430,2.70130966,3343.4,3343.3,0.00113685]
[1642053949232,2.58170966,3343.4,3343.3,0.00113685]
[1642053949638,2.58170966,3343.4,3343.1,13.38763585]
[1642053949832,2.70130966,3343.4,3343.1,13.38763585]
[1642053950234,2.58170966,3343.4,3343.1,13.38763585]
[1642053950438,2.58170966,3343.4,3343.2,2.80775417]
[1642053950837,2.56578462,3343.3,3343.2,0.1196]
[1642053951113,2.56578462,3343.3,3343.2,3.5696]
[1642053952899,2.56578462,3343.3,3343.2,6.37970795]
[1642053953301,2.56578462,3343.3,3343.2,3.5696]
[1642053955034,2.56578462,3343.3,3343.2,0.1196]
[1642053956941,2.56578462,3343.3,3343.2,3.0196]
[1642053957943,2.56578462,3343.3,3343.2,0.1196]
[1642053958341,2.56578462,3343.3,3343.1,13.38763585]
[1642053962631,3.31360482,3343.3,3343.1,13.38763585]
[1642053962830,0.1196,3343.2,3343.1,13.38763585]
[1642053963232,0.1196,3343.2,3343.1,13.3887727]
[1642053963434,2.68538462,3343.2,3343.1,13.3887727]
[1642053963633,2.63538462,3343.2,3343.1,13.3887727]
[1642053963836,2.56578462,3343.2,3343.1,13.3887727]
[1642053965032,2.67118462,3343.2,3343.1,13.3887727]
[1642053965233,2.79078462,3343.2,3343.1,11.58024223]
[1642053966488,2.67118462,3343.2,3343.1,11.58024223]
[1642053974391,3.79667851,3343.2,3343.1,11.58024223]
[1642053975390,6.56460385,3343.2,3343.1,11.58024223]
[1642053975991,3.79667851,3343.2,3343.1,11.58024223]
[1642053976390,3.91627851,3343.2,3343.1,11.58024223]
[1642053976790,3.86627851,3343.2,3343.1,11.58024223]
[1642053977629,3.74667851,3343.2,3343.1,11.58024223]
[1642053979835,2.62118462,3343.2,3343.1,11.58024223]
[1642053984399,2.62118462,3343.2,3343.1,9.06755469]
[1642053984599,5.41041535,3343.2,3343.1,9.06755469]
[1642053984837,2.62118462,3343.2,3343.1,9.06755469]
[1642053985033,2.74078462,3343.2,3343.1,9.06755469]
[1642053985236,3.04078462,3343.2,3343.1,9.06755469]
[1642053985434,5.82111915,3343.2,3343.1,9.06755469]
[1642053987240,5.52111915,3343.2,3343.1,9.06755469]
[1642053987441,5.40151915,3343.2,3343.1,9.06755469]
[1642053987638,5.70151915,3343.2,3343.1,9.06755469]
[1642053987839,5.52111915,3343.2,3343.1,9.06755469]
[1642053988040,8.34371915,3343.2,3343.1,9.06755469]
[1642053988482,8.34371915,3343.2,3343.1,3.08292589]
[1642053989089,6.74371915,3343.2,3343.1,3.08292589]
[1642053989288,8.34371915,3343.2,3343.1,3.08292589]
[1642053990988,7.09825911,3343.2,3343.1,3.08292589]
[1642053991791,6.99825911,3343.2,3343.1,3.08292589]
[1642053991990,6.94825911,3343.2,3343.1,3.08292589]
[1642053992445,5.41338462,3343.2,3343.1,3.08292589]
[1642053992648,4.61678462,3343.2,3343.1,3.08292589]
[1642053992847,3.16678462,3343.2,3343.1,3.08292589]
[1642053993047,2.62118462,3343.2,3343.1,3.08292589]
[1642053993246,2.62118462,3343.2,3343.1,3.08178904]
[1642053996393,2.92118462,3343.2,3343.1,3.08178904]
[1642053997197,3.04078462,3343.2,3343.1,3.08178904]
[1642053997596,4.57565911,3343.2,3343.1,3.08178904]
[1642053998699,2.62118462,3343.2,3343.1,3.08178904]
[1642053998899,2.92118462,3343.2,3343.1,3.08178904]
[1642054000943,3.66921462,3343.2,3343.1,3.08178904]
[1642054002044,5.20418632,3343.2,3343.1,3.08178904]
[1642054002845,3.66921462,3343.2,3343.1,3.08178904]
[1642054003695,5.20451622,3343.2,3343.1,3.08178904]
[1642054004497,3.66921462,3343.2,3343.1,3.08178904]
[1642054005403,3.04101762,3343.2,3343.1,3.08178904]
[1642054005601,2.74101762,3343.2,3343.1,3.08178904]
[1642054005800,2.74101762,3343.2,3343.1,5.97149984]
[1642054006102,2.74101762,3343.2,3343.1,3.08178904]
[1642054007934,2.74101762,3343.2,3343.1,5.940124]
[1642054008132,2.74101762,3343.2,3343.1,3.08178904]
[1642054011989,2.74101762,3343.2,3343.1,5.97138083]
[1642054012191,2.74101762,3343.2,3343.1,6.09098083]
[1642054013796,2.74101762,3343.2,3343.1,5.97138083]
[1642054014098,2.74101762,3343.2,3343.1,5.95322886]
[1642054015236,2.74101762,3343.2,3343.1,3.08178904]
[1642054015438,2.62118462,3343.2,3343.1,6.0292266]
[1642054016039,2.62118462,3343.2,3343.1,3.08178904]
[1642054016841,2.62118462,3343.2,3343.1,2.83178904]
[1642054019796,2.62118462,3343.2,3343.1,5.70935151]
[1642054019996,2.62118462,3343.2,3343.1,2.83178904]
[1642054021499,2.62118462,3343.2,3343.1,5.80994472]
[1642054021703,2.37118462,3343.2,3343.1,5.80994472]
[1642054022334,2.37118462,3343.2,3343.1,5.92954472]
[1642054022533,2.37118462,3343.2,3343.1,7.09389231]
[1642054023136,2.37118462,3343.2,3343.1,5.92954472]
[1642054023338,2.37118462,3343.2,3343.1,5.80994472]
[1642054023543,2.37118462,3343.2,3343.1,5.92954472]
[1642054023840,2.37118462,3343.2,3343.1,5.80994472]
[1642054024040,2.37118462,3343.2,3343.1,2.83178904]
[1642054025042,2.37118462,3343.2,3343.1,3.57944904]
[1642054025644,2.37118462,3343.2,3343.1,2.83178904]
[1642054030837,0.1054,3343.2,3343.1,2.83178904]
[1642054031637,0.225,3343.3,3343.1,2.83178904]
[1642054033903,0.1054,3343.3,3343.1,2.83178904]
[1642054034304,0.225,3343.3,3343.1,2.83178904]
[1642054034702,0.225,3343.3,3343.2,1.329519]
[1642054034902,0.1054,3343.3,3343.2,1.329519]
[1642054036002,0.1054,3343.3,3343.1,2.83178904]
[1642054037006,0.1054,3343.3,3343.1,4.07196865]
[1642054038937,0.1054,3343.3,3343.1,4.81962865]
[1642054039137,0.1054,3343.3,3343.1,5.19343865]
[1642054039339,0.1054,3343.3,3343.2,0.1196]
[1642054039537,0.1054,3343.3,3343.1,4.19156865]
[1642054049194,0.1054,3343.3,3343.1,4.07196865]
[1642054049392,2.68492613,3343.2,3343.1,4.07196865]
[1642054049693,2.68492613,3343.2,3343.1,2.83178904]
[1642054049890,2.79032613,3343.2,3343.1,2.83178904]
[1642054052440,2.79032613,3343.2,3343.1,2.47803904]
[1642054053040,2.79032613,3343.2,3343.1,2.17885904]
[1642054053443,2.67072613,3343.2,3343.1,2.17885904]
[1642054054644,2.67072613,3343.2,3343.1,2.13119904]
[1642054055046,2.66870613,3343.2,3343.1,2.12310904]
[1642054055447,2.66870613,3343.2,3343.1,1.97649904]
[1642054060837,2.66870613,3343.2,3343.1,2.72414904]
[1642054063345,2.66870613,3343.2,3343.1,3.72414904]
[1642054063592,2.66870613,3343.2,3343.1,3.84374904]
[1642054064495,0.1054,3343.2,3343.1,3.84374904]
[1642054065295,0.1054,3343.3,3343.1,4.21754904]
[1642054065494,0.1054,3343.3,3343.2,3.6696]
[1642054065694,0.1054,3343.3,3343.2,0.1196]
[1642054066695,0.1054,3343.3,3343.2,2.8196]
[1642054066896,0.1054,3343.3,3343.2,2.7]
[1642054067542,0.1054,3343.3,3343.1,2.84374904]
[1642054068943,0.1054,3343.3,3343.1,2.72414904]
[1642054069144,0.1054,3343.3,3343.2,3.03622679]
[1642054069543,0.1054,3343.3,3343.2,4.53130679]
[1642054069845,0.119785,3343.9,3343.3,0.1196]
[1642054070046,0.119785,3343.9,3343.5,0.3]
[1642054070245,0.00227369,3343.7,3343.6,0.1196]
[1642054070446,0.00227369,3343.7,3343.6,2.95586647]
[1642054070745,0.00227369,3343.7,3343.6,0.1196]
[1642054070988,0.00227369,3343.7,3343.5,1.53199846]
[1642054071190,0.00227369,3343.7,3343.4,2.95342712]
[1642054071387,0.00170527,3343.6,3343.4,2.95342712]
[1642054071791,0.00113685,3343.5,3343.4,2.95342712]
[1642054072593,0.00113685,3343.5,3343.3,1.3473455]
[1642054072793,0.00113685,3343.5,3343.2,4.09727314]
[1642054072992,0.00113685,3343.5,3343.2,1.2242]
[1642054073995,0.00113685,3343.5,3343.3,2.78562301]
[1642054074195,0.1196,3343.4,3343.2,1.2242]
[1642054074394,0.1196,3343.4,3343.2,3.99195487]
[1642054074839,0.1196,3343.4,3343.2,3.96596129]
[1642054075040,0.1196,3343.4,3343.3,2.91096352]
[1642054075944,0.1196,3343.4,3343.2,1.2242]
[1642054076340,0.1196,3343.4,3343.3,2.77128748]
[1642054077141,0.1196,3343.4,3343.2,1.2242]
[1642054079495,0.1196,3343.4,3343.2,1.3438]
[1642054080299,0.18437088,3343.4,3343.2,2.09145]
[1642054080900,0.18437088,3343.4,3343.2,1.3438]
[1642054081099,0.06477088,3343.4,3343.2,1.2242]
[1642054081299,0.18437088,3343.4,3343.1,5.08439904]
[1642054081502,0.18437088,3343.4,3343.1,1.97649904]
[1642054082645,2.5652838,3343.3,3343.1,1.97649904]
[1642054083652,0.1196,3343.2,3343.1,1.97649904]
[1642054085454,2.6848838,3343.2,3343.1,1.97649904]
[1642054085654,2.5652838,3343.2,3343.1,1.97649904]
[1642054086102,7.07111771,3343.2,3343.1,1.97649904]
[1642054086299,8.07111771,3343.2,3343.1,1.97649904]
[1642054086499,10.97111771,3343.2,3343.1,1.97649904]
[1642054086898,5.23728503,3343.2,3343.1,1.97649904]
[1642054087301,8.25519335,3343.2,3343.1,1.97649904]
[1642054087503,0.74821,3342.9,3341.4,4.3885]
[1642054087700,0.92516,3342.3,3341.4,4.3885]
[1642054087899,0.92516,3342.3,3341.5,0.01023162]
[1642054087900,1.95206,3342.3,3341.5,0.01023162]
[1642054088101,0.1196,3342.2,3341.5,0.01023162]
[1642054088302,0.1196,3342.2,3341.4,0.01080005]
[1642054088605,0.74825,3341.7,3341.4,0.01080005]
[1642054088804,1.22935,3341.7,3341.4,0.01080005]
[1642054089746,3.17936444,3341.6,3341.4,0.01080005]
[1642054089940,3.89106444,3341.6,3341.4,0.01080005]
[1642054090140,2.95469899,3341.5,3341.4,0.01080005]
[1642054090341,2.95469899,3341.5,3341.2,0.01193689]
[1642054090542,2.95469899,3341.5,3341.3,0.1197]
[1642054090946,2.95469899,3341.5,3341.4,0.01080005]
[1642054091350,3.07439899,3341.5,3341.4,0.01080005]
[1642054091544,3.07439899,3341.5,3341.0,0.01307374]
[1642054091744,3.07439899,3341.5,3340.9,0.01364216]
[1642054091745,0.74838,3341.3,3340.9,0.01364216]
[1642054091944,3.17340425,3341.2,3340.9,0.01364216]
[1642054092144,3.92179735,3341.2,3340.9,0.01364216]
[1642054092344,0.8680931,3341.2,3340.9,0.01364216]
[1642054092545,0.8680931,3341.2,3340.5,1.50998224]
[1642054092546,0.1197,3341.2,3340.5,1.50998224]
[1642054092747,0.1197,3341.5,3340.6,0.01534743]
[1642054092943,0.86801,3341.7,3340.6,0.01534743]
[1642054093144,0.74834,3341.6,3340.6,0.01534743]
[1642054093345,0.1197,3341.5,3340.6,0.01534743]
[1642054094197,0.01350724,3341.1,3340.6,0.01534743]
[1642054099343,0.02006668,3341.0,3340.6,0.01534743]
[1642054103908,0.00681486,3340.9,3340.6,0.01534743]
[1642054104205,0.01358341,3340.9,3340.6,0.01534743]
[1642054106654,0.01358341,3340.9,3340.7,0.1197]
[1642054107045,0.01358341,3340.9,3340.8,0.01421059]
[1642054109296,0.02004813,3340.9,3340.8,0.01421059]
[1642054110195,0.02004813,3340.9,3340.6,0.01534743]
[1642054111195,1.45584813,3340.9,3340.6,0.01534743]
[1642054111399,1.45584813,3340.9,3340.5,0.01591586]
[1642054111996,0.1197,3340.8,3340.5,0.01591586]
[1642054112257,1.17034739,3340.7,3340.5,0.01591586]
[1642054114252,0.00700017,3340.6,3340.5,0.01591586]
[1642054114854,0.00700017,3340.6,3340.1,0.01818955]
[1642054116998,1.50406307,3340.6,3340.1,0.01818955]
[1642054117197,0.1197,3340.5,3340.1,0.01818955]
[1642054118602,3.12670017,3340.6,3340.1,0.01818955]
[1642054118802,3.12670017,3340.6,3339.9,0.0193264]
[1642054119204,0.00698891,3340.4,3339.9,0.0193264]
[1642054120944,0.69968891,3340.4,3339.9,0.0193264]
[1642054123346,0.00698891,3340.4,3339.9,0.0193264]
[1642054124198,0.0202309,3340.3,3339.9,0.0193264]
[1642054128444,0.0202309,3340.3,3340.0,0.02036268]
[1642054128649,0.0202309,3340.3,3339.9,0.01941277]
[1642054128851,0.0202309,3340.3,3340.1,0.01818955]
[1642054129152,0.02040553,3340.2,3339.8,0.01989482]
[1642054134104,0.00658097,3340.0,3339.8,0.01989482]
[1642054138800,2.8179995,3340.0,3339.8,0.01989482]
[1642054139200,0.01369218,3339.9,3339.8,0.01989482]
[1642054139602,0.01369218,3339.9,3339.7,0.02046325]
[1642054139603,0.76242538,3339.9,3339.7,0.02046325]
[1642054139800,0.76242538,3339.9,3339.6,0.02103167]
[1642054139801,3.42896772,3339.8,3339.6,0.02103167]
[1642054140000,3.85496772,3339.8,3339.2,0.02330536]
[1642054140399,1.55628619,3339.7,3339.2,0.02330536]
[1642054140600,1.17057511,3339.5,3339.2,0.02330536]
[1642054140800,2.82022519,3339.4,3339.2,0.02330536]
[1642054141201,2.93992519,3339.4,3339.2,0.02330536]
[1642054141399,2.93992519,3339.4,3339.0,0.02444221]
[1642054141602,2.92794248,3339.4,3339.0,0.02444221]
[1642054142368,3.65394248,3339.4,3339.0,0.02444221]
[1642054142566,3.96344248,3339.4,3338.9,0.02501063]
[1642054143167,3.96344248,3339.4,3338.7,0.02614748]
[1642054143168,4.71231248,3339.4,3338.7,0.02614748]
[1642054143368,5.46120248,3339.4,3338.7,0.02614748]
[1642054143571,4.71231248,3339.4,3338.7,0.02614748]
[1642054143771,1.0489017,3339.3,3338.6,0.0267159]
[1642054143973,4.11579312,3339.2,3338.6,0.0267159]
[1642054144172,4.11579312,3339.2,3338.4,0.02785275]
[1642054144372,4.41579312,3339.2,3338.3,0.02842117]
[1642054144572,5.16471312,3339.2,3338.2,0.0289896]
[1642054144873,5.46471312,3339.2,3338.2,0.0289896]
[1642054145072,1.48761602,3338.3,3338.2,0.0289896]
[1642054145278,2.69256903,3338.3,3338.2,0.0289896]
[1642054147403,5.69256903,3338.3,3338.2,0.0289896]
[1642054148405,4.20495301,3338.3,3338.2,0.0289896]
[1642054148611,3.0,3338.3,3338.2,0.0289896]
[1642054149210,3.01999478,3338.3,3338.2,0.0289896]
[1642054152858,3.01999478,3338.3,3338.2,0.1487896]
[1642054154107,3.01999478,3338.3,3338.2,0.0289896]
[1642054155708,3.01999478,3338.3,3338.2,2.4289896]
[1642054155907,3.01999478,3338.3,3338.2,5.2955826]
[1642054156105,3.01999478,3338.3,3338.2,6.2955826]
[1642054157554,3.01999478,3338.3,3338.2,3.8955826]
[1642054157953,3.01999478,3338.3,3338.2,2.8955826]
[1642054158457,3.01999478,3338.3,3338.2,0.0289896]
[1642054174456,3.01999478,3338.3,3338.1,0.03772939]
[1642054176310,3.01999478,3338.3,3338.1,1.03772939]
[1642054176708,3.01999478,3338.3,3338.2,3.3698]
[1642054177312,3.01999478,3338.3,3338.2,0.1198]
[1642054180963,3.01999478,3338.3,3338.1,0.03772939]
[1642054184208,0.01357693,3338.2,3338.1,0.03772939]
[1642054184611,0.01357693,3338.2,3338.1,0.06728741]
[1642054185810,0.13337693,3338.2,3338.1,0.06728741]
[1642054188159,0.01357693,3338.2,3338.1,0.06728741]
[1642054192396,0.01357693,3338.2,3338.1,0.18708741]
[1642054194204,0.01357693,3338.2,3338.1,2.73708741]
[1642054194403,0.01357693,3338.2,3338.1,5.67315635]
[1642054194859,0.01357693,3338.2,3338.1,3.12315635]
[1642054195255,0.01357693,3338.2,3338.1,0.18708741]
[1642054196055,0.01357693,3338.2,3338.1,0.06728741]
[1642054198714,0.01357693,3338.2,3338.1,2.81099824]
[1642054198912,0.01357693,3338.2,3338.1,0.06728741]
[1642054199113,0.01357693,3338.2,3338.1,2.82003375]
[1642054199712,0.01357693,3338.2,3338.1,0.06728741]
[1642054214506,0.01357693,3338.2,3338.1,0.03772939]
[1642054218455,2.82743781,3338.2,3338.1,0.03772939]
[1642054218858,0.01357693,3338.2,3338.1,0.03772939]
[1642054221206,0.01357693,3338.2,3337.6,0.1198]
[1642054221609,0.01357693,3338.2,3337.7,0.03183172]
[1642054224112,0.01348864,3338.1,3337.7,0.03183172]
[1642054224312,2.68192892,3337.8,3337.7,0.03183172]
[1642054224761,2.68192892,3337.8,3337.5,0.03296856]
[1642054224962,2.68192892,3337.8,3337.5,0.78190856]
[1642054225362,2.68192892,3337.8,3337.6,0.03240014]
[1642054225563,2.68192892,3337.8,3337.6,0.15220014]
[1642054226163,1.39139654,3337.8,3337.6,0.15220014]
[1642054226363,0.01348864,3338.1,3337.6,0.15220014]
[1642054226564,0.01348864,3338.1,3337.7,0.74891]
[1642054226963,0.01348864,3338.1,3337.8,0.03126329]
[1642054227365,1.16197273,3338.0,3337.8,0.03126329]
[1642054227964,1.10415982,3337.9,3337.6,0.03240014]
[1642054228612,1.10415982,3337.9,3337.5,0.03296856]
[1642054229012,1.10415982,3337.9,3337.5,0.78191856]
[1642054229212,1.11763096,3337.9,3337.5,0.03296856]
[1642054229410,1.11763096,3337.9,3337.4,1.1198]
[1642054229411,1.11763096,3337.9,3337.6,0.03240014]
[1642054229613,1.11763096,3337.9,3337.5,0.03296856]
[1642054229810,1.11763096,3337.9,3337.6,0.1198]
[1642054230012,1.11763096,3337.9,3337.5,0.03296856]
[1642054230414,1.11763096,3337.9,3337.4,0.03353699]
[1642054230820,3.1423711,3337.8,3337.4,0.03353699]
[1642054231013,0.1198,3337.8,3337.4,0.03353699]
[1642054231214,0.1198,3337.8,3337.0,0.03581068]
[1642054231412,0.1198,3337.8,3336.8,0.15674753]
[1642054231913,0.1198,3337.8,3336.9,0.0363791]
[1642054232257,0.1198,3337.8,3337.0,0.1198]
[1642054232456,0.1198,3337.8,3336.9,0.0363791]
[1642054232657,0.1198,3337.8,3337.1,0.03524226]
[1642054232857,0.1198,3337.8,3336.9,0.0363791]
[1642054233060,0.1198,3337.8,3336.9,0.1561791]
[1642054233263,2.56967055,3337.7,3336.9,0.1198]
[1642054233461,0.1198,3337.6,3337.0,0.03581068]
[1642054236105,0.1198,3337.6,3336.9,0.0363791]
[1642054237708,0.86902,3337.6,3336.8,0.03694753]
[1642054237906,1.23586016,3336.9,3336.8,0.03694753]
[1642054238107,0.1198,3337.6,3336.8,0.03694753]
[1642054238511,0.1198,3337.6,3336.5,4.18087588]
[1642054238810,3.1198,3337.6,3336.6,0.15788437]
[1642054239013,3.0,3337.6,3336.6,1.15788437]
[1642054239314,0.00698369,3337.5,3336.7,3.10543051]
[1642054239514,0.00698369,3337.5,3337.0,0.74905]
[1642054239964,0.00698369,3337.5,3337.1,0.03524226]
[1642054240561,0.00698369,3337.5,3337.0,0.03581068]
[1642054240764,0.00698369,3337.5,3337.0,2.8019212]
[1642054241163,0.00698369,3337.5,3337.1,0.03524226]
[1642054241365,0.00698369,3337.5,3337.1,0.15504226]
[1642054241566,0.00698369,3337.5,3337.2,0.749]
[1642054241763,0.00698369,3337.5,3337.2,0.78367383]
[1642054241965,0.00698369,3337.5,3337.3,0.03410541]
[1642054242168,0.00698369,3337.5,3337.3,2.80708333]
[1642054242367,3.31835797,3337.5,3337.3,2.84298027]
[1642054242567,3.31835797,3337.5,3337.4,0.03353699]
[1642054243370,3.31835797,3337.5,3337.3,0.03410541]
[1642054244014,3.32480687,3337.5,3337.3,0.03410541]
[1642054245013,3.32480687,3337.5,3337.1,0.03524226]
[1642054246016,3.32480687,3337.5,3337.1,2.74151793]
[1642054246420,3.32480687,3337.5,3337.2,0.03467383]
[1642054247475,3.32480687,3337.5,3337.0,0.03581068]
[1642054247974,3.32480687,3337.5,3337.0,0.78486068]
[1642054248276,3.32480687,3337.5,3337.1,0.03524226]
[1642054248473,3.32480687,3337.5,3337.1,0.15504226]
[1642054248876,3.32480687,3337.5,3337.2,0.03467383]
[1642054249177,0.01985123,3337.4,3337.2,0.03467383]
[1642054249379,3.2992184,3337.4,3337.2,0.03467383]
[1642054252208,3.2992184,3337.4,3337.1,0.74902]
[1642054252409,3.2992184,3337.4,3337.2,0.03467383]
[1642054253209,3.2992184,3337.4,3337.2,2.78031838]
[1642054253408,3.2992184,3337.4,3337.2,2.77167963]
[1642054253614,3.2992184,3337.4,3337.3,2.73410541]
[1642054253813,3.2992184,3337.4,3337.3,0.03410541]
[1642054254113,3.2858096,3337.4,3337.3,0.03410541]
[1642054255061,3.2858096,3337.4,3337.1,0.03524226]
[1642054255862,3.2858096,3337.4,3337.0,0.03581068]
[1642054256465,1.535183,3337.4,3337.0,0.03581068]
[1642054259118,0.0133954,3337.3,3337.0,2.78084006]
[1642054259318,1.3570171,3337.3,3337.1,0.74903]
[1642054259616,1.3570171,3337.3,3337.2,2.79975823]
[1642054260315,1.3570171,3337.3,3337.2,3.79975823]
[1642054260718,1.3570171,3337.3,3337.2,1.03467383]
[1642054261016,1.3570171,3337.3,3337.2,2.91000656]
[1642054261419,1.3570171,3337.3,3337.2,3.91000656]
[1642054261617,0.00644243,3337.4,3337.3,6.85]
[1642054261819,0.00644243,3337.4,3337.3,11.41669864]
[1642054262017,1.00350172,3337.4,3337.3,11.45080405]
[1642054262460,0.00644243,3337.4,3337.3,11.45080405]
[1642054262660,0.00644243,3337.4,3337.3,8.42990541]
[1642054263263,0.00644243,3337.4,3337.3,11.45080405]
[1642054263464,0.00644243,3337.4,3337.3,17.23880405]
[1642054263665,0.00644243,3337.4,3337.3,21.12470405]
[1642054263867,0.00644243,3337.4,3337.3,38.64470405]
[1642054264068,0.01487216,3337.4,3337.3,38.64470405]
[1642054264268,0.01487216,3337.4,3337.3,21.12470405]
[1642054265366,0.00847216,3337.4,3337.3,21.12470405]
[1642054265569,0.119987,3338.7,3337.3,21.42470405]
[1642054265770,0.119987,3338.7,3338.0,0.74877]
[1642054266021,0.119987,3338.7,3338.1,2.86311146]
[1642054266206,0.119987,3338.7,3338.1,2.89266948]
[1642054266409,0.119987,3338.7,3338.2,1.0289896]
[1642054266609,1.66938946,3338.7,3338.2,0.0289896]
[1642054266810,1.66938946,3338.7,3338.1,2.86311146]
[1642054266811,1.21466756,3338.6,3338.3,0.02842117]
[1642054267010,1.21466756,3338.6,3338.2,0.0289896]
[1642054267211,1.21466756,3338.6,3338.2,1.0289896]
[1642054267411,1.21466756,3338.6,3338.3,0.7487485]
[1642054267613,1.21466756,3338.6,3338.3,1.52592967]
[1642054267810,1.21466756,3338.6,3338.4,0.02785275]
[1642054269312,0.01171558,3338.5,3338.4,0.02785275]
[1642054275114,0.01171558,3338.5,3338.2,0.0289896]
[1642054275716,0.01171558,3338.5,3338.3,0.7487386]
[1642054275916,0.01171558,3338.5,3338.4,2.77920847]
[1642054276115,0.01171558,3338.5,3338.4,2.80706122]
[1642054276516,2.58099504,3338.5,3338.4,2.80706122]
[1642054276719,2.58099504,3338.5,3338.4,0.02785275]
[1642054277362,0.01171558,3338.5,3338.4,0.02785275]
[1642054278763,0.01171558,3338.5,3338.2,0.0289896]
[1642054278967,2.58100247,3338.5,3338.2,0.0289896]
[1642054279965,0.01171558,3338.5,3338.2,0.0289896]
[1642054280366,0.01171558,3338.5,3338.3,0.7487417]
[1642054280768,0.01171558,3338.5,3338.4,0.02785275]
[1642054285663,2.82775953,3338.5,3338.4,0.02785275]
[1642054285870,0.01171558,3338.5,3338.2,0.0289896]
[1642054286467,0.01171558,3338.5,3338.2,0.33233645]
[1642054286866,0.01171558,3338.5,3338.3,0.02842117]
[1642054287066,0.01171558,3338.5,3338.3,0.33176802]
[1642054287472,0.01171558,3338.5,3338.4,0.02785275]
[1642054288073,0.01171558,3338.5,3338.3,1.4974879]
[1642054288271,0.01171558,3338.5,3338.4,0.02785275]
[1642054289018,0.01171558,3338.5,3338.4,0.33656048]
[1642054289215,0.01171558,3338.5,3338.4,4.98531048]
[1642054289416,0.01171558,3338.5,3338.4,22.23131048]
[1642054289614,9.365,3338.6,3338.4,2.81131048]
[1642054289816,9.365,3338.6,3338.5,1.4972214]
[1642054290017,9.365,3338.6,3338.5,6.45921346]
[1642054290215,9.365,3338.6,3338.5,3.55921346]
[1642054292021,9.365,3338.6,3338.5,3.67901346]
[1642054292471,9.365,3338.6,3338.5,3.25301346]
[1642054293471,9.365,3338.6,3338.5,2.95301346]
[1642054293673,9.365,3338.6,3338.5,3.25301346]
[1642054294073,9.37477613,3338.6,3338.5,3.25301346]
[1642054294672,9.37477613,3338.6,3338.5,2.94430573]
[1642054295274,9.37477613,3338.6,3338.5,2.82450573]
[1642054298724,9.37477613,3338.6,3338.5,2.94430573]
[1642054299125,9.37477613,3338.6,3338.5,3.96267572]
[1642054299976,9.37477613,3338.6,3338.5,2.94430573]
[1642054300376,9.37477613,3338.6,3338.5,2.82450573]
[1642054309772,3.38691613,3338.6,3338.5,10.80053526]
[1642054309971,1.87677613,3338.6,3338.5,10.92033526]
[1642054310171,0.3982738,3339.9,3338.6,6.65]
[1642054310374,0.3982738,3339.9,3338.7,1.1701]
[1642054310571,1.26973789,3339.8,3339.3,1.49695]
[1642054310771,1.26973789,3339.8,3339.3,0.74847]
[1642054311020,1.26973789,3339.8,3339.4,0.02216852]
[1642054311213,1.26973789,3339.8,3339.5,0.748478]
[1642054311413,3.83822753,3339.8,3339.5,0.748478]
[1642054311618,3.83822753,3339.8,3339.6,0.02103167]
[1642054312517,2.56848964,3339.7,3339.6,0.02103167]
[1642054312717,2.68818964,3339.7,3339.6,0.02103167]
[1642054312916,4.23775434,3339.7,3339.6,0.02103167]
[1642054313318,7.13966163,3339.7,3339.1,0.02387379]
[1642054313523,4.23775434,3339.7,3339.1,0.02387379]
[1642054313718,7.07549286,3339.7,3339.1,0.02387379]
[1642054314120,7.10036702,3339.7,3339.1,0.02387379]
[1642054314320,7.10036702,3339.7,3339.4,1.496956]
[1642054314525,2.56848964,3339.6,3339.4,1.496956]
[1642054314769,2.56848964,3339.6,3339.5,0.02160009]
[1642054319426,2.59332437,3339.6,3339.5,0.02160009]
[1642054320427,5.42826003,3339.6,3339.5,0.02160009]
[1642054320627,5.42799235,3339.6,3339.5,0.02160009]
[1642054320826,2.59332437,3339.6,3339.5,0.02160009]
[1642054322872,5.46443887,3339.6,3339.5,0.02160009]
[1642054323872,5.58413887,3339.6,3339.5,0.02160009]
[1642054324073,5.58413887,3339.6,3339.0,0.02444221]
[1642054324272,0.1197,3339.5,3338.9,0.02501063]
[1642054325674,0.1197,3339.5,3339.0,0.7487011]
[1642054326116,0.1197,3339.5,3339.1,0.02387379]
[1642054326117,2.56848964,3339.4,3339.1,0.02387379]
[1642054329219,0.02471643,3339.3,3339.1,0.02387379]
[1642054331064,2.56848964,3339.2,3339.1,0.02387379]
[1642054334226,2.58082814,3339.2,3339.1,0.02387379]
[1642054334427,2.58082814,3339.2,3339.1,0.14357379]
[1642054334632,2.58082814,3339.2,3339.1,2.84357379]
[1642054335025,2.58082814,3339.2,3339.1,3.84357379]
[1642054335229,2.58082814,3339.2,3339.1,1.14357379]
[1642054336127,2.58082814,3339.2,3339.1,0.14357379]
[1642054336325,2.58082814,3339.2,3339.1,1.14357379]
[1642054336725,2.58082814,3339.2,3339.1,0.14357379]
[1642054337126,0.0123385,3339.2,3339.1,0.14357379]
[1642054337565,0.119952,3339.5,3339.2,4.55]
[1642054337766,0.119952,3339.5,3339.3,2.6195168]
[1642054337970,0.119952,3339.5,3339.4,0.1197]
[1642054338168,0.119952,3339.5,3339.4,0.14186852]
[1642054339271,2.68813359,3339.5,3339.4,0.14186852]
[1642054339770,2.68813359,3339.5,3339.4,3.39186852]
[1642054340171,2.68813359,3339.5,3339.4,4.39186852]
[1642054340172,0.119952,3339.5,3339.4,4.39186852]
[1642054340371,5.2e-05,3339.5,3339.4,4.39186852]
[1642054341020,5.2e-05,3339.5,3339.4,1.14186852]
[1642054341415,1.511,3339.8,3339.4,1.14186852]
[1642054341615,1.511,3339.8,3339.6,0.74841]
[1642054341915,1.511,3339.8,3339.7,0.02046325]
[1642054344025,4.07901936,3339.8,3339.7,0.02046325]
[1642054344224,4.0977637,3339.8,3339.7,0.02046325]
[1642054346890,4.0977637,3339.8,3339.7,0.76886325]
[1642054347891,1.44199216,3339.8,3339.7,0.76886325]
[1642054348924,1.44199216,3339.8,3339.7,0.02046325]
[1642054349726,4.01007982,3339.8,3339.7,0.02046325]
[1642054350826,4.01007982,3339.8,3339.7,0.76886325]
[1642054351425,1.44199216,3339.8,3339.7,0.76886325]
[1642054352572,1.44199216,3339.8,3339.7,0.02046325]